[Event "Fall IM-D Norm Invitational 2022"]
[Site "Charlotte"]
[Date "2022.11.18"]
[Round "2"]
[White "Estrada Nieto, Julian"]
[Black "Petenyi, Tamas"]
[Result "1/2-1/2"]
[ECO "C60"]
[WhiteElo "2241"]
[BlackElo "2410"]
[Annotator "TA"]
[PlyCount "64"]
[EventDate "2022.11.18"]
[EventType "tourn"]
[EventCountry "USA"]
[SourceTitle "playchess.com"]
[Source "ChessBase"]
[SourceQuality "1"]
[TimeControl "5400+30"]

{[%evp 9,64,21,36,37,28,25,30,26,14,15,19,10,19,4,55,41,44,-129,-129,-131,-129,-147,-79,-83,-88,-80,-60,-47,10,-16,0,0,30,11,14,25,17,8,18,12,20,23,26,25,39,0,0,0,3,0,0,0,0,0,0,0,0]} 1. e4 {[%emt 0:00:30]} e5 {[%emt 0:04:00]} 2. Nf3 {[%emt 0:00:34]} Nc6 {[%emt 0:00:10]} 3. Bb5 {[%emt 0:00:07]} Nge7 {[%emt 0:02:14]} 4. Nc3 {[%emt 0:01:28]} Ng6 {[%emt 0:02:15]} 5. d4 {[%emt 0:00:45]} Nxd4 {[%emt 0:03:46]} 6. Nxd4 {[%emt 0:00:21] C60: Ruy Lopez: Unusual Black 3rd moves and 3...g6.} exd4 {[%emt 0:00:04]} 7. Qxd4 {[%emt 0:00:05]} c6 {[%emt 0:00:11]} 8. Be2 {[%emt 0:00:44] White has an edge.} Qb6 {[%emt 0:00:21]} 9. Qd2 {[%emt 0:00:44]} Be7 {[%emt 0:04:03]} 10. b3 {[%emt 0:02:19]} O-O {[%emt 0:03:53]} 11. Bb2 {[%emt 0:00:50] [#]} d6 $146 {[%emt 0:08:36]} ({Black should play} 11... Re8 $11) ({Predecessor:} 11... Qa5 12. f4 d6 13. g3 f5 14. O-O-O fxe4 15. Nxe4 Qxd2+ 16. Nxd2 d5 17. c4 Be6 {1-0 (44) Aronian,L (2785)-Sadhwani,R (2616) Chess.com INT 2022}) 12. f4 $14 {[%emt 0:18:38]} f5 {[%emt 0:08:59]} 13. Rf1 $2 {[%emt 0:09:11]} (13. exf5 $14 {keeps the upper hand.} Rxf5 14. g3) 13... fxe4 $1 $17 {[%emt 0:05:15]} 14. Nxe4 {[%emt 0:00:09] [#] Threatens to win with Qc3.} d5 $1 {[%emt 0:01:51]} 15. Nc3 {[%emt 0:06:52] [#]} ({Not} 15. Qc3 $2 Bb4 16. O-O-O Bxc3 $19) 15... Qc7 {[%emt 0:08:24]} (15... Bd6 $142 $1 {[%cal Rd6f4]} 16. g3 Bh3) 16. g3 {[%emt 0:04:00]} Bh3 {[%emt 0:01:59]} 17. Rf3 {[%emt 0:01:21]} Rad8 {[%emt 0:12:23]} 18. O-O-O {[%emt 0:01:51]} Bf6 {[%emt 0:02:45] Against Qd4} (18... a5 $15) 19. Na4 {[%emt 0:09:54]} Bxb2+ {[%emt 0:04:52]} 20. Nxb2 {[%emt 0:01:02]} Rfe8 {[%emt 0:06:37]} 21. Re3 {[%emt 0:03:37]} Qb6 {[%emt 0:04:37]} 22. Rxe8+ {[%emt 0:01:46]} Rxe8 {[%emt 0:00:01]} 23. Bh5 {[%emt 0:00:40]} Re7 {[%emt 0:05:21]} 24. Re1 {[%emt 0:11:28]} Rxe1+ {[%emt 0:02:17]} 25. Qxe1 {[%emt 0:00:01] Intending Qe8+ and mate.} Nf8 {[%emt 0:00:17]} 26. Nd3 {[%emt 0:03:54] Strongly threatening Qe7.} g6 {[%emt 0:01:23]} 27. Bf3 {[%emt 0:01:46]} Bf5 {[%emt 0:00:07] The position is equal.} 28. Ne5 {[%emt 0:02:37]} Qc5 {[%emt 0:01:02][%csl Gf5][%cal Rc5c2]} 29. Qd2 {[%emt 0:01:45]} Nd7 {[%emt 0:01:26]} 30. Nxd7 {[%emt 0:01:41] Active counter play!} Bxd7 {[%emt 0:00:01]} 31. Kb2 {[%emt 0:03:07]} Bf5 {[%emt 0:02:08]} 32. g4 {[%emt 0:03:28]} Bd7 {[%emt 0:01:31] Weighted Error Value: White=0.17 (very precise) /Black=0.11 (very precise)} 1/2-1/2

[Event "Fall IM-D Norm Invitational 2022"]
[Site "Charlotte"]
[Date "2022.11.18"]
[Round "2"]
[White "Eidelman, Gabriel"]
[Black "Malicka, Maria"]
[Result "1-0"]
[ECO "E35"]
[WhiteElo "2197"]
[BlackElo "2275"]
[Annotator "TA"]
[PlyCount "67"]
[EventDate "2022.11.18"]
[EventType "tourn"]
[EventCountry "USA"]
[SourceTitle "playchess.com"]
[Source "ChessBase"]
[SourceQuality "1"]
[TimeControl "5400+30"]

{[%evp 17,67,25,36,30,47,0,12,0,0,0,0,0,0,2,16,0,35,14,15,15,24,29,18,24,22,0,50,52,59,61,313,320,511,510,483,277,810,817,792,773,956,919,3031,5497,2597,2218,29988,29989,29989,29984,29984,29985]} 1. d4 {[%emt 0:00:05]} Nf6 {[%emt 0:00:51]} 2. c4 {[%emt 0:00:09]} e6 {[%emt 0:00:04]} 3. Nc3 {[%emt 0:00:10]} Bb4 {[%emt 0:00:08]} 4. Qc2 {[%emt 0:00:08]} d5 {[%emt 0:00:09]} 5. cxd5 {[%emt 0:00:11]} exd5 {[%emt 0:00:06]} 6. Bg5 {[%emt 0:00:10][%cal Bc1g5,Bg5h4,Bh4g3][%mdl 32]} c5 {[%emt 0:00:24]} 7. dxc5 {[%emt 0:00:33]} h6 {[%emt 0:00:22]} 8. Bh4 {[%emt 0:00:14]} g5 {[%emt 0:00:27]} 9. Bg3 {[%emt 0:00:10]} Ne4 {[%emt 0:00:04]} 10. e3 {[%emt 0:00:43] E35: Nimzo-Indian: Classical: 4...d5 5 cxd5 exd5.} Qa5 {[%emt 0:00:28][%cal Re4c3]} 11. Rc1 $1 {[%emt 0:01:00][%mdl 4] White wants to play Bd3. is currently scoring better than 11.Nge2.} Qxa2 {[%emt 0:00:23]} (11... Qxc5 12. Bd3 $14) 12. Bb5+ {[%emt 0:00:27] The position is equal.} Bd7 {[%emt 0:00:49]} 13. Bxd7+ {[%emt 0:00:11]} Nxd7 {[%emt 0:00:23]} 14. Nge2 {[%emt 0:00:13] [#] Threatens to win with 0-0.} Nxc3 {[%emt 0:01:07]} (14... Nexc5 $2 15. O-O Qc4 16. Rfd1 $18) ({But not} 14... Nxg3 15. hxg3 Qa6 16. O-O $18) 15. Nxc3 {[%emt 0:00:16] aiming for 0-0.} Qc4 {[%emt 0:00:22]} (15... Nxc5 $2 16. O-O Qb3 17. Qf5 $18) 16. Rd1 {[%emt 0:00:14][%cal Bc1d1,Bd1d4,Bd4d5][%mdl 32]} Qe4 {[%emt 0:14:52]} 17. Qd2 {[%emt 0:00:46]} Qxg2 {[%emt 0:10:29]} 18. Ke2 {[%emt 0:00:11] [#] Hoping for Rhg1.} Bxc3 $146 {[%emt 0:07:59]} (18... Bxc5 $2 19. Nxd5 Rc8 20. Rhg1 $18 (20. Nc7+ Rxc7 21. Bxc7 Qg4+ 22. Kf1 Be7 $16)) ({Predecessor:} 18... g4 19. Qxd5 Qf3+ 20. Qxf3 gxf3+ 21. Kxf3 Bxc3 22. bxc3 Nxc5 23. Rhg1 Ne6 24. Be5 Rf8 {½-½ (40) Kantor,G (2514)-Xu,Y (2528) Leanyfalu 2019}) 19. Qxc3 {[%emt 0:02:07]} O-O {[%emt 0:00:08]} 20. Rhg1 {[%emt 0:26:32][%mdl 1024] White has compensation.} Qe4 {[%emt 0:01:47]} 21. Rd4 {[%emt 0:04:42]} Qe6 {[%emt 0:22:05]} (21... Qg6 $11) 22. Bd6 {[%emt 0:06:43]} Rfc8 {[%emt 0:08:01][%cal Od7c5]} 23. h4 {[%emt 0:00:42]} f6 {[%emt 0:04:21][%mdl 8192] This costs Black the game.} (23... b6 $14 24. hxg5 h5) 24. Qd3 $18 {[%emt 0:03:47]} Kg7 {[%emt 0:16:57] Inhibits Qg6+.} (24... Ne5 $142 25. Bxe5 fxe5 26. Rxd5 e4) 25. Rxd5 {[%emt 0:05:19][%cal Rh4g5]} Rh8 {[%emt 0:00:50]} 26. Qb3 {[%emt 0:25:10]} (26. h5 Rh7 $16) (26. hxg5 $142 hxg5 27. Bf4 Nxc5 28. Rxc5) 26... Qe4 $2 {[%emt 0:04:05]} (26... Rae8 27. Qxb7 (27. hxg5 hxg5 28. Qxb7 Rh7 $18) 27... Kg8) 27. Qxb7 {[%emt 0:01:17]} Qc4+ {[%emt 0:01:58]} 28. Kf3 {[%emt 0:00:27]} Kg6 {[%emt 0:00:39]} 29. Rg4 {[%emt 0:06:03]} Qf1 {[%emt 0:01:28]} 30. Qxd7 {[%emt 0:00:57][%cal Oh4h5] h5+! would kill now.} Qh1+ {[%emt 0:02:29]} 31. Rg2 {[%emt 0:00:11] White wants to mate with Be7.} Qxh4 {[%emt 0:00:57]} 32. Qf5+ {[%emt 0:00:54] White mates.} Kg7 {[%emt 0:00:04]} 33. Rh2 {[%emt 0:00:57]} Qc4 {[%emt 0:00:19]} 34. Be7 {[%emt 0:00:45] Weighted Error Value: White=0.19 (very precise) /Black=0.67} 1-0

[Event "Fall IM-D Norm Invitational 2022"]
[Site "Charlotte"]
[Date "2022.11.18"]
[Round "2"]
[White "Liu, Eric"]
[Black "Marek, Matyas"]
[Result "1/2-1/2"]
[ECO "B56"]
[WhiteElo "2182"]
[BlackElo "2346"]
[Annotator "TA"]
[PlyCount "70"]
[EventDate "2022.11.18"]
[EventType "tourn"]
[EventCountry "USA"]
[SourceTitle "playchess.com"]
[Source "ChessBase"]
[SourceQuality "1"]
[TimeControl "5400+30"]

{[%evp 13,70,18,27,0,4,0,0,-11,-6,0,0,-18,-17,-22,-20,-14,-17,-22,-19,-55,0,0,0,0,0,-14,0,-17,-10,-12,-14,-33,-30,-36,0,-36,0,-9,0,0,0,0,0,0,0,-5,-6,-6,0,-12,0,0,0,0,20,-49,0,0,31]} 1. e4 {[%emt 0:00:02]} c5 {[%emt 0:00:06]} 2. Nf3 {[%emt 0:00:06]} d6 {[%emt 0:00:04]} 3. d4 {[%emt 0:00:15]} cxd4 {[%emt 0:00:05]} 4. Nxd4 {[%emt 0:00:08]} Nf6 {[%emt 0:00:04]} 5. Nc3 {[%emt 0:00:05]} Nc6 {[%emt 0:00:04]} 6. f3 {[%emt 0:00:28]} e5 {[%emt 0:00:07]} 7. Nb3 {[%emt 0:00:08]} Be7 {[%emt 0:00:04]} 8. Nd5 {[%emt 0:04:59] B56: Classical Sicilian: Unusual Lines.} Nxd5 {[%emt 0:07:36]} 9. exd5 {[%emt 0:00:13]} Nb8 {[%emt 0:00:53][%cal Bc6b8,Bb8d7,Bd7c5][%mdl 32]} 10. Be3 {[%emt 0:01:21] [#]} Bh4+ $146 {[%emt 0:01:08]} ({Predecessor:} 10... O-O 11. c4 Nd7 12. Bd3 Bh4+ 13. g3 Bg5 14. Bxg5 Qxg5 15. Qd2 Qe7 16. Qe2 Qg5 {0-1 (41) Caceres Recalde,F (1863)-Shumyatsky,V (2052) Villa Carlos Paz 2008}) 11. g3 {[%emt 0:00:21]} Bg5 {[%emt 0:00:04]} 12. Qd2 {[%emt 0:14:36]} Bxe3 {[%emt 0:01:31]} 13. Qxe3 {[%emt 0:00:05]} O-O {[%emt 0:00:25]} 14. O-O-O {[%emt 0:01:32]} Nd7 {[%emt 0:01:07]} 15. Bd3 {[%emt 0:04:01]} a5 {[%emt 0:03:22][%cal Ba7a5,Ba5a4][%mdl 32]} 16. a3 {[%emt 0:16:37]} f5 {[%emt 0:05:11]} 17. f4 {[%emt 0:12:35]} a4 {[%emt 0:04:15]} 18. Nd2 {[%emt 0:00:16]} e4 {[%emt 0:00:09]} 19. Be2 {[%emt 0:02:07]} Nc5 {[%emt 0:00:20]} 20. Qd4 {[%emt 0:05:44]} b5 {[%emt 0:04:04]} 21. Kb1 {[%emt 0:03:06]} Rb8 {[%emt 0:01:35]} 22. Rhe1 {[%emt 0:09:26]} Qb6 {[%emt 0:04:43]} 23. c3 {[%emt 0:10:21]} Qc7 {[%emt 0:01:08]} 24. Qb4 {[%emt 0:07:18]} Rf6 {[%emt 0:04:59]} 25. Nf1 {[%emt 0:00:46]} Rh6 {[%emt 0:01:48]} 26. Qd4 {[%emt 0:00:31]} Nb3 {[%emt 0:01:05]} 27. Qf2 {[%emt 0:02:17]} Bd7 {[%emt 0:02:58][%cal Bc8d7,Bd7e8,Be8h5][%mdl 32]} 28. Ne3 {[%emt 0:00:55]} Qc5 {[%emt 0:01:00]} 29. Bf1 {[%emt 0:02:00]} Rf6 {[%emt 0:03:49]} 30. Re2 {[%emt 0:01:16]} Be8 {[%emt 0:01:17]} 31. Rc2 {[%emt 0:01:09]} Bh5 {[%emt 0:02:08]} 32. Be2 {[%emt 0:00:40]} Bf7 {[%emt 0:02:32]} 33. h3 {[%emt 0:00:41]} Re8 {[%emt 0:01:06]} 34. Qg1 {[%emt 0:00:49]} ({White should try} 34. g4 $11 Bg6 35. gxf5 Bxf5 36. Bg4) 34... Kh8 {[%emt 0:00:42]} (34... Rf8 $15) 35. Qf2 $14 {[%emt 0:00:10]} Kg8 {[%emt 0:06:07] Weighted Error Value: White=0.11 (very precise) /Black=0.10 (very precise)} 1/2-1/2

[Event "Fall IM-D Norm Invitational 2022"]
[Site "Charlotte"]
[Date "2022.11.18"]
[Round "2"]
[White "Willy, Stephen"]
[Black "Lee, Alice"]
[Result "0-1"]
[ECO "B22"]
[WhiteElo "2159"]
[BlackElo "2284"]
[Annotator "TA"]
[PlyCount "82"]
[EventDate "2022.11.18"]
[EventType "tourn"]
[EventCountry "USA"]
[SourceTitle "playchess.com"]
[Source "ChessBase"]
[SourceQuality "1"]
[TimeControl "5400+30"]

{[%evp 26,82,-4,-12,-12,-25,-14,-25,0,0,0,0,0,0,9,0,9,14,18,-26,-26,-25,83,84,74,68,91,76,75,83,71,79,100,65,84,0,21,0,52,0,0,-50,-41,-58,-56,-252,-234,-245,-220,-365,-322,-780,-784,-809,-793,-856,-727,-686,-648]} 1. e4 {[%emt 0:00:03]} c5 {[%emt 0:00:04]} 2. c3 {[%emt 0:00:04]} Nf6 {[%emt 0:00:07]} 3. e5 {[%emt 0:00:04]} Nd5 {[%emt 0:00:06]} 4. d4 {[%emt 0:00:04]} cxd4 {[%emt 0:00:06]} 5. Nf3 {[%emt 0:00:05]} Nc6 {[%emt 0:00:06]} 6. Bc4 {[%emt 0:00:04]} Nb6 {[%emt 0:00:06]} 7. Bb3 {[%emt 0:00:04]} d5 {[%emt 0:00:07]} 8. exd6 {[%emt 0:00:06]} Qxd6 9. O-O {[%emt 0:00:30]} Be6 10. Na3 {[%emt 0:00:30]} dxc3 11. Nb5 {[%emt 0:00:30]} Qxd1 12. Rxd1 {[%emt 0:00:30]} Rc8 13. Bxe6 {[%emt 0:00:30]} fxe6 14. bxc3 {[%emt 0:00:30]} g6 {[#] B22: Sicilian: 2 c3.} 15. Re1 $146 {[%emt 0:00:30]} ({Predecessor:} 15. Ng5 e5 16. Be3 Bh6 17. Nxa7 Nxa7 18. Bxb6 Bxg5 19. Bxa7 Rxc3 20. Rdb1 Kf7 21. Rxb7 Rhc8 22. g3 {½-½ (34) Pap,M (2482)-Brkic,A (2565) Biograd 2018}) 15... Na4 16. Rxe6 {[%emt 0:00:30]} a6 {Black has an edge.} 17. Nbd4 {[%emt 0:00:30]} Nd8 18. Re1 {[%emt 0:00:30]} Nxc3 19. Ba3 {[%emt 0:00:30] aiming for Rac1.} Nd5 {[%cal Bc3d5,Bd5b6,Bb6c4][%mdl 32]} 20. Re5 {[%emt 0:00:30]} Nb6 21. Rae1 {[%emt 0:00:30][%cal Re5e7]} Rc7 22. Bc5 {[%emt 0:00:30]} Nc4 23. Rd5 {[%emt 0:00:30]} Bg7 {[#]} (23... Rd7 $11 24. Rxd7 Kxd7) 24. Rxd8+ $1 $16 {[%emt 0:00:30][%mdl 64] Remove Defender, Decoy} Kxd8 {[%cal Be8d8,Bd8c8,Bc8c7,Bc7c6,Bc6c5,Bc5d6][%mdl 32]} 25. Ne6+ {[%emt 0:00:30]} Kc8 {And now ...Rc6 would win.} 26. Nxc7 {[%emt 0:00:30]} Kxc7 27. Rxe7+ {[%emt 0:00:30]} Kc6 {[%cal Oh8d8]} 28. Rxg7 {[%emt 0:00:30]} Kxc5 29. Rxb7 {[%emt 0:00:30][%mdl 4096] Endgame KRN-KRN} a5 30. Ng5 {[%emt 0:00:30]} ({White should play} 30. Kf1 $16) 30... Re8 $1 $11 {[%cal Re8e1]} 31. f3 {[%emt 0:00:30] Strongly threatening Ne4+.} (31. g4 $5 {[%cal Rb7h7]}) 31... Re1+ 32. Kf2 {[%emt 0:00:30]} Ra1 33. Ne6+ {[%emt 0:00:30]} ({But not} 33. Nxh7 Rxa2+ 34. Kg3 a4 $15) (33. a4 $11) 33... Kd6 $15 34. Nf4 {[%emt 0:00:30]} Rxa2+ 35. Ne2 $2 {[%emt 0:00:30] [#] This move loses the game for White.} (35. Kg3 $15) 35... a4 $1 $19 {[%cal Ba5a4,Ba4a3,Ba3a2][%mdl 32]} 36. f4 {[%emt 0:00:30]} a3 {...Rd2 is the strong threat.} 37. g4 {[%emt 0:00:30]} (37. Kf3 $142) 37... Rb2 38. Ra7 {[%emt 0:00:30]} (38. Rxb2 axb2 39. Nc3) 38... a2 {Black is clearly winning.} 39. f5 {[%emt 0:00:30]} gxf5 40. g5 {[%emt 0:00:30]} Nd2 41. Ke3 {[%emt 0:00:30]} Nb3 {Weighted Error Value: White=0.51/Black=0.16 (very precise)} 0-1

[Event "Fall IM-D Norm Invitational 2022"]
[Site "Charlotte"]
[Date "2022.11.18"]
[Round "2"]
[White "De La Colina, Nicolas"]
[Black "Amburgy, Ryan"]
[Result "1-0"]
[ECO "C53"]
[WhiteElo "2123"]
[BlackElo "2175"]
[Annotator "TA"]
[PlyCount "91"]
[EventDate "2022.11.18"]
[EventType "tourn"]
[EventCountry "USA"]
[SourceTitle "playchess.com"]
[Source "ChessBase"]
[SourceQuality "1"]
[TimeControl "5400+30"]

{[%evp 12,91,0,-2,0,-9,0,0,0,0,41,34,52,47,52,50,51,52,52,41,52,43,80,59,81,58,79,64,76,50,94,97,311,307,338,341,339,320,302,239,227,218,265,262,545,264,259,265,318,306,288,274,316,354,351,350,408,323,451,329,317,318,310,316,779,776,2299,1010,1304,1267,1112,1031,1045,995,982,908,6652,29966,6532,6399,2117,1695]} 1. e4 {[%emt 0:00:08]} e5 {[%emt 0:00:06]} 2. Nf3 {[%emt 0:00:29]} Nc6 {[%emt 0:00:06]} 3. Bc4 {[%emt 0:00:11]} Bc5 {[%emt 0:00:06]} 4. c3 Nf6 5. d3 {[%emt 0:00:28]} O-O {[%emt 0:00:16]} 6. Bb3 {[%emt 0:10:20]} d5 {[%emt 0:00:52]} 7. Nbd2 {[%emt 0:00:18]} dxe4 {[%emt 0:03:46] C54: Giuoco Piano: 4 c3 Nf6, main lines with 5 d4 and 5 d3.} 8. dxe4 {[%emt 0:00:40]} Qe7 {[%emt 0:00:59]} 9. O-O {[%emt 0:05:44]} Bg4 {[%emt 0:04:48] The position is equal.} 10. h3 {[%emt 0:05:27]} Bh5 {[%emt 0:00:33]} 11. Re1 {[%emt 0:01:25] [#]} Rfd8 $146 {[%emt 0:06:32]} ({Predecessor:} 11... Rad8 12. Qe2 h6 13. Nf1 Bg6 14. Ng3 a6 15. Nh4 Bh7 16. Qf3 Ne8 17. Nhf5 Qf6 18. Nh5 Qg6 19. g4 Ne7 {0-1 (19) De Leon,F (800)-Slavin,P (1098) LSS email 2010}) 12. Qe2 {[%emt 0:01:56]} a5 {[%emt 0:08:27]} 13. a4 {[%emt 0:08:34]} h6 {[%emt 0:21:23]} 14. Nf1 {[%emt 0:03:21][%cal Bd2f1,Bf1g3,Bg3f5][%mdl 32]} Bg6 {[%emt 0:00:56]} 15. Bc2 {[%emt 0:05:35]} (15. Ng3 {feels hotter.} Bh7 16. Nh4 Qd6 17. Qc4) 15... Ra6 {[%emt 0:13:06]} 16. Nh4 {[%emt 0:06:30]} Rb6 {[%emt 0:02:35]} 17. Ng3 {[%emt 0:03:15]} Kh7 {[%emt 0:03:36]} 18. Ngf5 {[%emt 0:05:38]} Qe6 {[%emt 0:02:29]} 19. g4 {[%emt 0:00:57]} Ng8 {[%emt 0:02:20]} 20. Bd3 {[%emt 0:05:53][%cal Ob2b4]} Nce7 {[%emt 0:04:20]} 21. Nf3 {[%emt 0:02:48]} Qd7 $2 {[%emt 0:01:33] A mistake that costs the game.} (21... Nc8 $16) 22. Nxe5 $18 {[%emt 0:01:59]} Qe6 {[%emt 0:00:01]} 23. Bf4 {[%emt 0:02:02]} Qc8 {[%emt 0:02:39]} 24. Rad1 {[%emt 0:02:32]} f6 {[%emt 0:01:28]} 25. Nf3 {[%emt 0:02:31][%cal Be5f3,Bf3e1,Be1d3][%mdl 32]} Nxf5 {[%emt 0:01:17]} 26. exf5 {[%emt 0:01:54]} Bf7 {[%emt 0:00:01]} 27. Bc4 {[%emt 0:06:48]} Re8 {[%emt 0:01:55]} (27... Rxd1 {keeps fighting.} 28. Rxd1 Rxb2 29. Qxb2 Bxc4) 28. Qd3 {[%emt 0:03:09]} (28. Bxf7 $142 Rxe2 29. Rxe2) 28... Rxe1+ {[%emt 0:02:00]} 29. Nxe1 {[%emt 0:00:30]} ({Don't take} 29. Rxe1 Qf8 30. b3 (30. Bxc7 Bxf2+ 31. Kxf2 Qc5+ 32. Qe3 Rxb2+ 33. Re2 Rxe2+ 34. Bxe2 Qxc7 $11) 30... Bd6 $18) 29... Qe8 {[%emt 0:00:51]} 30. Bxf7 {[%emt 0:01:09]} ({Weaker is} 30. Bxc7 Bxf2+ 31. Kxf2 Rxb2+ 32. Kg1 Bxc4 33. Qxc4 Qe3+ 34. Kh1 Qxh3+ 35. Kg1 Qe3+ 36. Kh1 Qh3+ 37. Kg1 Qe3+ 38. Kh1 Qh3+ $11) 30... Qxf7 {[%emt 0:00:01]} 31. Qd5 {[%emt 0:01:17]} Qe7 {[%emt 0:04:59]} 32. Nd3 {[%emt 0:01:20]} Bd6 {[%emt 0:00:04]} 33. Be3 {[%emt 0:01:19]} Rc6 {[%emt 0:00:15]} 34. Re1 {[%emt 0:03:11]} Qd7 {[%emt 0:01:44][%cal Od6h2] [#] Hoping for ...Bh2+!} 35. Qxa5 {[%emt 0:00:18]} Ra6 {[%emt 0:02:32]} 36. Qb5 {[%emt 0:00:16]} c6 {[%emt 0:00:22]} 37. Qc4 {[%emt 0:00:29]} Ne7 $2 {[%emt 0:00:07]} (37... b5 38. axb5 cxb5) 38. Qf7 {[%emt 0:03:24][%cal Oe3h6] And now Bxh6! would win.} Ra5 {[%emt 0:01:47] [#]} 39. Bd4 {[%emt 0:01:19]} (39. Bxh6 $142 $1 {[%mdl 512]} Nxf5 40. Qxd7 Nxh6 41. Qxd6) 39... Rxf5 {[%emt 0:02:27]} 40. gxf5 {[%emt 0:00:37]} Qxf5 {[%emt 0:00:01]} 41. Rxe7 {[%emt 0:03:11]} Bxe7 {[%emt 0:00:01]} 42. Qxe7 {[%emt 0:00:24][%cal Od4f6] Black must now prevent Bxf6!} Qxd3 {[%emt 0:00:31]} 43. Bxf6 {[%emt 0:01:16][%csl Gf6][%cal Re7g7]} Qd1+ {[%emt 0:00:53]} 44. Kh2 {[%emt 0:00:12][%csl Gf6][%cal Re7g7]} Kg6 {[%emt 0:00:03]} 45. Qxg7+ {[%emt 0:00:37]} Kf5 {[%emt 0:00:01]} 46. Qg4+ {[%emt 0:00:14] Weighted Error Value: White=0.26 (precise) /Black=0.43} 1-0

[Event "Fall IM-D Norm Invitational 2022"]
[Site "Charlotte"]
[Date "2022.11.20"]
[Round "5"]
[White "Petenyi, Tamas"]
[Black "De La Colina, Nicolas"]
[Result "1/2-1/2"]
[ECO "B30"]
[WhiteElo "2410"]
[BlackElo "2123"]
[Annotator "TA"]
[PlyCount "62"]
[EventDate "2022.11.18"]
[EventType "tourn"]
[EventCountry "USA"]
[SourceTitle "playchess.com"]
[Source "ChessBase"]
[SourceQuality "1"]
[TimeControl "5400+30"]

{[%evp 9,62,13,10,0,-5,-13,0,1,0,0,0,-4,-1,-51,0,-12,0,-58,-66,-56,-56,-78,-73,-86,-11,-25,-22,-28,-27,-33,-8,-87,-43,-34,-34,-37,-34,-49,-49,-49,-37,-86,-23,-27,-27,-27,-25,-22,-12,-12,-12,-14,-16,-22,0]} 1. e4 {[%emt 0:02:04]} c5 {[%emt 0:00:06]} 2. Nf3 {[%emt 0:00:48]} Nc6 {[%emt 0:00:06]} 3. Bb5 {[%emt 0:01:17]} Nf6 {[%emt 0:00:41]} 4. Qe2 {[%emt 0:01:02]} g6 {[%emt 0:01:48]} 5. e5 {[%emt 0:07:54]} Nd5 {[%emt 0:00:39][%cal Bf6d5,Bd5c7,Bc7e6][%mdl 32]} 6. Nc3 {[%emt 0:01:21] B30: Sicilian: 2...Nc6 3 Bb5, lines without ...g6.} Nc7 {[%emt 0:03:39]} 7. Ne4 {[%emt 0:04:44]} Ne6 {[%emt 0:03:25]} 8. Bxc6 {[%emt 0:09:32]} dxc6 {[%emt 0:00:43]} 9. d3 {[%emt 0:00:32]} Bg7 {[%emt 0:00:37]} 10. Be3 {[%emt 0:01:59] [#]} b6 $146 {[%emt 0:02:07]} ({Predecessor:} 10... O-O 11. O-O Nd4 12. Bxd4 cxd4 13. h3 Qd5 14. Ned2 c5 15. c3 dxc3 16. bxc3 Bf5 {½-½ (64) Ahlberg,G (2210)-Hevendehl,H Bad Wildbad 1998}) 11. O-O-O {[%emt 0:09:07]} (11. a4 $11) 11... O-O {[%emt 0:08:03]} (11... Nd4 $15 12. Bxd4 cxd4) 12. Qd2 {[%emt 0:04:29]} Nd4 {[%emt 0:12:36]} 13. Nxd4 {[%emt 0:07:05]} (13. Bh6 $11) 13... cxd4 $15 {[%emt 0:00:06]} 14. Bh6 {[%emt 0:00:10]} Qd5 $1 {[%emt 0:06:05]} 15. Bxg7 {[%emt 0:00:34]} Kxg7 {[%emt 0:00:02]} 16. Qg5 {[%emt 0:00:33] [#]} Qe6 {[%emt 0:03:24]} ({Black should play} 16... Re8 $1 $17 17. b3 a5) 17. Kb1 {[%emt 0:04:04]} h6 {[%emt 0:02:48]} 18. Qh4 {[%emt 0:03:44]} Qxe5 {[%emt 0:07:02]} 19. f4 {[%emt 0:02:31]} Qc7 {[%emt 0:01:39]} 20. g4 {[%emt 0:01:05] [#] Prevents Bf5.} (20. Rde1 $11 {remains equal.}) 20... Bxg4 $1 {[%emt 0:16:09]} 21. Qxg4 {[%emt 0:07:10]} f5 {[%emt 0:00:06]} 22. Ng5 $1 {[%emt 0:00:13] Ne6+ is the strong threat.} Qd6 {[%emt 0:00:59] Inhibits Ne6+.} ({Resist} 22... fxg4 23. Ne6+ Kf7 24. Nxc7 $16) 23. Qg3 {[%emt 0:02:22] Black must now prevent Nf3.} hxg5 {[%emt 0:00:06]} 24. Qxg5 {[%emt 0:00:06]} Qf6 {[%emt 0:00:42] Threatens to win with ...Qxg5.} 25. Qg2 {[%emt 0:02:58]} (25. Qg3 $15 {should be considered.}) 25... Rh8 {[%emt 0:02:31]} (25... e5 $17 26. fxe5 Qxe5) 26. Rde1 {[%emt 0:00:45]} Rad8 {[%emt 0:01:34]} 27. Re2 {[%emt 0:00:43]} Rd6 {[%emt 0:01:48]} 28. Rhe1 {[%emt 0:00:29]} e6 {[%emt 0:00:20] The position is equal.} 29. a3 {[%emt 0:02:07]} Kf7 {[%emt 0:00:54]} 30. Rg1 {[%emt 0:01:59]} Rh6 {[%emt 0:01:16]} 31. Qf3 {[%emt 0:01:25]} Qh8 {[%emt 0:03:56] Weighted Error Value: White=0.17 (very precise) /Black=0.15 (very precise)} 1/2-1/2

[Event "Fall IM-D Norm Invitational 2022"]
[Site "Charlotte"]
[Date "2022.11.20"]
[Round "5"]
[White "Marek, Matyas"]
[Black "Amburgy, Ryan"]
[Result "1/2-1/2"]
[ECO "E10"]
[WhiteElo "2346"]
[BlackElo "2175"]
[Annotator "TA"]
[PlyCount "43"]
[EventDate "2022.11.18"]
[EventType "tourn"]
[EventCountry "USA"]
[SourceTitle "playchess.com"]
[Source "ChessBase"]
[SourceQuality "1"]
[TimeControl "5400+30"]

{[%evp 23,24,0,13]} 1. d4 {[%emt 0:02:06]} Nf6 2. c4 {[%emt 0:00:05]} e6 {[%emt 0:00:11]} 3. Nf3 {[%emt 0:00:09]} d5 {[%emt 0:00:06]} 4. e3 {[%emt 0:00:50]} Be7 {[%emt 0:00:59]} 5. b3 {[%emt 0:01:12]} O-O {[%emt 0:00:20]} 6. Bd3 {[%emt 0:00:23]} c5 {[%emt 0:03:11]} 7. O-O {[%emt 0:02:18]} Nc6 {[%emt 0:00:20]} 8. Bb2 {[%emt 0:01:46]} cxd4 {[%emt 0:02:27]} 9. exd4 {[%emt 0:01:35]} b6 {[%emt 0:00:15]} 10. Nbd2 {[%emt 0:01:42]} Bb7 {[%emt 0:00:43]} 11. Rc1 {[%emt 0:00:42]} Rc8 {[%emt 0:01:37]} 12. Qe2 {[%emt 0:02:08]} Re8 {[%emt 0:00:38] [#]} {Predecessor:} 13. Rfe1 $146 {E14: Queen's Indian: Classical Variation (4 e3).} Bf8 14. h3 g6 15. Qe3 Bg7 16. a3 Nd7 17. cxd5 exd5 18. Qxe8+ Qxe8 19. Rxe8+ Rxe8 20. b4 Nf8 21. Ne5 Rc8 22. Nxc6 {½-½ (22) Sargissian,G (2672)-Anand,V (2782) Riadh 2017} 1/2-1/2